fUSD/lending_fUSD_20240125
["ID","MTS","AMOUNT","RATE_DAILY","PERIOD"]
[312704402,1706171438633,-876.30395543,0.00023,2]
[312704403,1706171438677,-502.61833434,0.00023,2]
[312704404,1706171438688,-1175.30245498,0.00023,2]
[312704419,1706171440909,-1380.14617822,0.00023,2]
[312704420,1706171440921,-1009.82710736,0.00023,2]
[312704421,1706171440937,-372.46008747,0.00023,2]
[312704422,1706171440948,-3723.81727995,0.00023,2]
[312704423,1706171441644,-468.67992952,0.00023,2]
[312704424,1706171441657,-489.84713216,0.00023,2]
[312704425,1706171441886,-445.77293818,0.00023,2]
[312704426,1706171441980,-1314.96246063,0.00023,2]
[312704427,1706171441991,-1145.10809719,0.00023,2]
[312704462,1706171443446,-718.16092439,0.00023,2]
[312704467,1706171443503,-3223.146016,0.00023,2]
[312704468,1706171443572,-2121.82760127,0.00023,2]
[312704469,1706171443630,-4651.54292143,0.00023,2]
[312704470,1706171443641,-2102.7673685,0.00023,2]
[312704471,1706171443653,-3291.39065368,0.00023,2]
[312704472,1706171443669,-1004.45,0.00023,2]
[312704482,1706171443810,-29508.6998868,0.00023,2]
[312704503,1706171446586,-436.73841766,0.00023,2]
[312704504,1706171446641,-6429.86504835,0.00023,2]
[312704505,1706171446653,-3982.1,0.00023,2]
[312704506,1706171446752,-2714.311599,0.00023,2]
[312704511,1706171884731,204.0,0.00020946,2]
[312704512,1706171889995,155.0,0.00020945,2]
[312704513,1706171955177,1005.12,0.00020368,2]
[312704516,1706172063960,206.0,0.00020946,2]
[312704523,1706172181715,159.98,0.00017542,2]
[312704529,1706172302079,288.963526,0.0002159,2]
[312704530,1706172396993,968.87,0.00019741,2]
[312704531,1706172458722,6475.28559128,0.0002164,2]
[312704532,1706172458744,4623.93440872,0.0002164,2]
[312704533,1706172601859,153.82,0.00021639,2]
[312704534,1706172604600,204.0,0.0002155,2]
[312704544,1706172632976,-155.0,0.00021658,2]
[312704545,1706172632986,-690.49430514,0.00021658,2]
[312704546,1706172632995,-250.0,0.00021659,2]
[312704547,1706172633005,-419.3,0.00021669,2]
[312704548,1706172633014,-150.0,0.00021709,2]
[312704549,1706172633023,-150.0,0.00021709,2]
[312704550,1706172633033,-14149.22403677,0.00021711,2]
[312704551,1706172633064,-4232.02668404,0.00021711,2]
[312704552,1706172633086,-815.74022496,0.00021711,2]
[312704553,1706172633097,-572.01503807,0.00021711,2]
[312704554,1706172633109,-667.8614337,0.00021711,2]
[312704555,1706172633142,-1303.71037969,0.00021711,2]
[312704556,1706172633153,-1572.09871997,0.00021711,2]
[312704574,1706172635986,-587.3234828,0.00021711,2]
[312704575,1706172636007,-1000.0,0.00021725,2]
[312704576,1706172636027,-500.0,0.00021744,2]
[312704577,1706172636053,-198.82,0.00021918,3]
[312704578,1706172636078,-250.0,0.00021918,2]
[312704579,1706172636100,-162.38510973,0.0002197,2]
[312704580,1706172636121,-968.87,0.00022005,2]
[312704581,1706172636142,-169.94,0.00022046,2]
[312704582,1706172636163,-153.16,0.0002207,2]
[312704583,1706172636183,-622.62568775,0.00022079,2]
[312704584,1706172636203,-2284.53042324,0.00022079,2]
[312704585,1706172636225,-153.21,0.00022171,2]
[312704586,1706172636245,-300.0,0.00022207,2]
[312704587,1706172636268,-153.21,0.00022402,2]
[312704588,1706172636291,-153.21,0.00022633,2]
[312704589,1706172636311,-773.26543485,0.00022768,2]
[312704590,1706172636335,-395.56404013,0.00022769,2]
[312704591,1706172636357,-889.0,0.0002277,2]
[312704592,1706172636377,-1987.0884813,0.000228,2]
[312704593,1706172636398,-634.66694592,0.000228,2]
[312704594,1706172636420,-153.21,0.00022865,2]
[312704595,1706172636440,-964.71249084,0.00022885,2]
[312704596,1706172636461,-156.6460488,0.00022899,2]
[312704597,1706172636483,-2796.4728,0.000229,2]
[312704598,1706172636505,-103976.3937,0.000229,2]
[312704599,1706172636529,-2699.58483278,0.000229,2]
[312704600,1706172636550,-851.24317068,0.000229,2]
[312704601,1706172636574,-152.88280836,0.000229,2]
[312704602,1706172636595,-198.63517768,0.000229,6]
[312704603,1706172636616,-634.66694592,0.000229,2]
[312704604,1706172636637,-65927.95702481,0.00022997,2]
[312704605,1706172636658,-759.16205872,0.00022998,2]
[312704606,1706172636679,-17415.56333569,0.00022998,2]
[312704622,1706172638048,-338.8976,0.00022998,2]
[312704623,1706172638060,-1116.2736678,0.00022998,2]
[312704624,1706172638071,-383.07549806,0.00022998,2]
[312704625,1706172638083,-363.80198584,0.00022998,2]
[312704626,1706172638094,-1006.02858682,0.00022998,2]
[312704627,1706172638106,-646.75178338,0.00022998,2]
[312704628,1706172638211,-1044.616485,0.00022998,2]
[312704629,1706172638224,-634.86637679,0.00022998,2]
[312704630,1706172638234,-162.18930337,0.00022998,2]
[312704631,1706172638244,-179.84269597,0.00022999,2]
[312704632,1706172638256,-15.39392009,0.00022999,2]
[312704633,1706172638268,-436.800001,0.00022999,2]
[312704634,1706172638280,-2320.86348825,0.00022999,2]
[312704635,1706172638354,-2900.000003,0.00022999,2]
[312704643,1706172640287,153.16,0.00021644,2]
[312704644,1706172640813,-1535.87078449,0.00022999,2]
[312704645,1706172640822,-164.96152334,0.00022999,2]
[312704646,1706172640832,-150.0,0.00022999,2]
[312704647,1706172640841,-150.0,0.00022999,2]
[312704648,1706172640850,-82545.46791545,0.00023,2]
[312704688,1706172643556,-471.06540919,0.00023,2]
[312704689,1706172643568,-284.64109147,0.00023,2]
[312704690,1706172643603,-5781.85762313,0.00023,2]
[312704691,1706172643622,-2132.5616958,0.00023,2]
[312704692,1706172643634,-1991.24719166,0.00023,2]
[312704693,1706172643645,-909.26795473,0.00023,2]
[312704694,1706172645639,-430.9683575,0.00022999,2]
[312704695,1706172645651,-259.52594764,0.00022999,2]
[312704696,1706172645660,-2555.98862745,0.00023,2]
[312704697,1706172645694,-1484.91540318,0.00023,2]
[312704698,1706172645857,-4693.21981833,0.00023,2]
[312704699,1706172645869,-15855.86125658,0.00023,2]
[312704700,1706172645880,-4970.50956312,0.00023,2]
[312704701,1706172645969,-3615.91927574,0.00023,2]
[312704703,1706172717449,302.0,0.00021,2]
[312704706,1706172812218,914.0,0.00021041,2]
[312704708,1706172848047,3112.30470856,0.0002,2]
[312704709,1706172848072,946.37912853,0.0002,2]
[312704710,1706172917806,435.67275605,0.000194,2]
[312704711,1706172937805,402.64675844,0.000194,2]
[312704712,1706172953815,402.64675844,0.00018818,2]
[312704713,1706172975803,402.64675844,0.00018818,2]
[312704714,1706172995814,402.64675844,0.00018253,2]
[312704715,1706173013818,402.64675844,0.00018253,2]
[312704716,1706173033838,402.64675844,0.00018253,2]
[312704717,1706173265453,880.88,0.00019968,2]
[312704718,1706173431696,166.94,0.00021632,2]
[312704719,1706173546352,4617.46668206,0.00021628,2]
[312704720,1706173546376,9463.21911728,0.00021628,2]
[312704721,1706173546398,1545.67420066,0.00021628,2]
[312704722,1706173582242,174.71,0.00021644,2]
[312704723,1706173655075,250.67,0.00021598,2]
[312704724,1706173670326,165.07307558,0.0002165,2]
[312704725,1706173680074,690.49430514,0.0002165,2]
[312704726,1706173684412,208.0,0.00021296,2]
[312704727,1706173685321,1062.34025431,0.0002165,2]
[312704728,1706173689098,250.0,0.00021632,2]
[312704729,1706173690266,3194.72146129,0.0002165,2]
[312704730,1706173718122,1921.5358203,0.00021632,2]
[312704731,1706173718146,9463.21911728,0.00021632,2]
[312704732,1706173718169,9463.21911728,0.00021632,2]
[312704733,1706173718195,3052.02594514,0.00021632,2]
[312704735,1706173752037,-1046.8266157,0.00021651,2]
[312704736,1706173752065,-155.0,0.00021658,2]
[312704737,1706173752092,-494.8,0.00021659,2]
[312704738,1706173752120,-800.0,0.000217,2]
[312704739,1706173752149,-153.04,0.00021774,2]
[312704740,1706173752177,-157.09938718,0.00021818,2]
[312704741,1706173752206,-1000.0,0.00021915,2]
[312704742,1706173752233,-150.0,0.00021915,2]
[312704743,1706173752259,-150.0,0.00021915,2]
[312704744,1706173753041,690.49430514,0.0002165,2]
[312704745,1706173765835,1062.34025431,0.00021915,2]
[312704746,1706173783693,-15033.63343479,0.00021916,7]
[312704747,1706173804027,205.0,0.00021296,2]
[312704753,1706173831851,-288.669932,0.00021915,2]
[312704754,1706173831864,-401.82437314,0.00021915,2]
[312704755,1706173831874,-319.24149127,0.00021916,7]
[312704756,1706173831886,-357.46371413,0.00021916,7]
[312704757,1706173831907,-373.90204875,0.00021916,7]
[312704758,1706173831919,-2393.0359926,0.00021916,7]
[312704759,1706173831945,-479.78547045,0.00021916,7]
[312704760,1706173831957,-359.237999,0.00021916,7]
[312704761,1706173831969,-1489.35905869,0.00021916,7]
[312704762,1706173831989,-2242.77160239,0.00021916,7]
[312704763,1706173832000,-2108.98238451,0.00021916,7]
[312704764,1706173832010,-250.0,0.00021918,2]
[312704765,1706173832021,-201.2178343,0.00021918,2]
[312704766,1706173832032,-815.54017513,0.00021918,2]
[312704768,1706173832044,-394.394,0.00021918,2]
[312704771,1706173832065,-763.01283785,0.00021918,2]
[312704800,1706173837739,-3055.29298702,0.00021918,2]
[312704803,1706173837749,-150.0,0.00022,2]
[312704805,1706173837759,-150.0,0.00022,2]
[312704808,1706173837769,-360.0,0.00022047,2]
[312704811,1706173837778,-622.62568775,0.00022076,2]
[312704814,1706173837787,-2521.31448937,0.00022076,2]
[312704817,1706173837799,-178.96075496,0.00022076,2]
[312704820,1706173837810,-880.88,0.00022231,2]
[312704822,1706173837819,-153.04,0.00022341,2]
[312704825,1706173837830,-671.81421461,0.00022457,2]
[312704828,1706173837839,-3652.39886207,0.000225,2]
[312704830,1706173837848,-150.77298008,0.00022548,2]
[312704831,1706173837857,-150.0,0.00022548,2]
[312704832,1706173837866,-15335.47966379,0.00022608,2]
[312704833,1706173837877,-596.74116281,0.00022608,2]
[312704834,1706173837896,-4840.2891734,0.00022608,2]
[312704835,1706173837905,-167.66,0.0002276,2]
[312704836,1706173837915,-645.97708286,0.0002277,2]
[312704837,1706173837946,-6540.560361,0.0002277,2]
[312704838,1706173837956,-473.6768,0.00022897,2]
[312704839,1706173837966,-744.83777431,0.00022898,2]
[312704840,1706173837975,-155.88650894,0.00022898,2]
[312704841,1706173837985,-345.68529376,0.00022899,2]
[312704842,1706173837994,-2642.19833526,0.000229,2]
[312704843,1706173838004,-97.15492673,0.000229,2]
[312704844,1706173838015,-4500.0,0.000229,2]
[312704848,1706173838111,-26602.76086331,0.000229,2]
[312704850,1706173838123,-399.34640078,0.000229,2]
[312704852,1706173838134,-3519.00000001,0.000229,2]
[312704854,1706173838145,-360.17460302,0.000229,2]
[312704857,1706173838164,-20076.56320615,0.000229,2]
[312704859,1706173838174,-315.09794416,0.000229,2]
[312704861,1706173838183,-158.90814212,0.000229,6]
[312704863,1706173838192,-205.29749463,0.000229,4]
[312704865,1706173838201,-860.08906958,0.000229,2]
[312704867,1706173838211,-152.88280836,0.000229,2]
[312704869,1706173838220,-232.54301121,0.000229,2]
[312704871,1706173838229,-153.04,0.00022909,2]
[312704873,1706173838238,-188.08365814,0.0002299,2]
[312704876,1706173838247,-188.08365814,0.0002299,2]
[312704879,1706173838256,-188.08365814,0.0002299,2]
[312704881,1706173838265,-1257.43862542,0.00022996,2]
[312704883,1706173838274,-525.41780926,0.00022996,2]
[312704885,1706173838283,-263.67638283,0.00022996,2]
[312704887,1706173838292,-164.8499711,0.00022996,2]
[312704889,1706173838301,-156.51631473,0.00022996,2]
[312704891,1706173838310,-585.16577305,0.00022997,2]
[312704893,1706173838319,-12345.57936616,0.00022997,2]
[312704895,1706173838329,-4251.09923915,0.00022998,2]
[312704897,1706173838338,-210.05748419,0.00022998,2]
[312704899,1706173838347,-14934.97499082,0.00022998,2]
[312704901,1706173838358,-628.5,0.00022998,2]
[312704903,1706173838371,-688.5,0.00022998,2]
[312704906,1706173838387,-535.68757505,0.00022998,2]
[312704909,1706173838406,-59480.39296218,0.00022998,2]
[312704911,1706173838417,-13726.92838059,0.00022998,2]
[312704914,1706173838429,-374.16160013,0.00022998,2]
[312704916,1706173838441,-395.2299961,0.00022998,2]
[312704920,1706173838465,-1119.11267965,0.00022998,2]
[312704922,1706173838477,-865.31950033,0.00022998,2]
[312704924,1706173838492,-6187.87860382,0.00022998,2]
[312705099,1706173840496,-39532.81310392,0.00022998,2]
[312705100,1706173840524,-10181.24615483,0.00022998,2]
[312705101,1706173840540,-20391.5678241,0.00022998,2]
[312705102,1706173840551,-19521.45362892,0.00022998,2]
[312705103,1706173840563,-259.41654144,0.00022998,2]
[312705104,1706173840575,-558.59855038,0.00022998,2]
[312705105,1706173840586,-705.7607287,0.00022998,2]
[312705106,1706173840597,-4091.85402502,0.00022998,2]
[312705107,1706173840610,-854.44252208,0.00022998,2]
[312705108,1706173840624,-532.20015401,0.00022998,2]
[312705109,1706173840637,-250.5,0.00022998,2]
[312705110,1706173840650,-514.06877968,0.00022998,2]
[312705111,1706173840857,-143010.05010264,0.00022998,2]
[312705112,1706173840869,-652.63661068,0.00022998,2]
[312705113,1706173840881,-5957.42624654,0.00022998,2]
[312705114,1706173840894,-598.01165468,0.00022998,2]
[312705115,1706173840905,-1636.38332143,0.00022998,2]
[312705116,1706173840917,-5610.39032302,0.00022998,2]
[312705117,1706173840945,-381.19675957,0.00022998,2]
[312705118,1706173840975,-20575.73679264,0.00022998,2]
[312705119,1706173840991,-351.45936331,0.00022998,2]
[312705120,1706173841007,-555.900003,0.00022998,2]
[312705121,1706173841019,-946.6711992,0.00022998,2]
[312705122,1706173841031,-272.44258227,0.00022998,2]
[312705123,1706173841065,-824.1117,0.00022998,2]
[312705124,1706173841094,-8281.83619993,0.00022998,2]
[312705125,1706173841106,-3488.09898984,0.00022998,2]
[312705126,1706173841119,-1104.43424814,0.00022998,2]
[312705161,1706173842775,-20816.25635126,0.00022998,2]
[312705163,1706173842788,-1015.73782321,0.00022998,2]
[312705164,1706173842799,-1590.32321476,0.00022998,2]
[312705165,1706173842810,-275.16935946,0.00022998,2]
[312705166,1706173842822,-2037.31092658,0.00022998,2]
[312705167,1706173842851,-19677.8746835,0.00022998,2]
[312705168,1706173842862,-388.39049616,0.00022998,2]
[312705169,1706173843192,-12122.7966213,0.00022998,2]
[312705170,1706173843201,-262.32693477,0.00022998,2]
[312705171,1706173843212,-211.90474573,0.00022999,2]
[312705172,1706173843222,-155.0,0.00022999,2]
[312705173,1706173843233,-5038.93139283,0.00022999,2]
[312705174,1706173843242,-2622.64497432,0.00022999,2]
[312705175,1706173843251,-150.01,0.00022999,2]
[312705176,1706173843260,-3301.0962401,0.00022999,2]
[312705177,1706173843271,-500.0,0.00022999,2]
[312705178,1706173843280,-500.0,0.00022999,2]
[312705179,1706173843290,-455.1239935,0.00022999,2]
[312705180,1706173843299,-307.27842369,0.00022999,2]
[312705181,1706173843308,-150.0,0.00022999,2]
[312705182,1706173843317,-150.0,0.00022999,2]
[312705183,1706173843327,-1310534.61073786,0.00023,2]
[312705184,1706173843338,-1120.75474578,0.00023,2]
[312705185,1706173843350,-1267.39406076,0.00023,2]
[312705186,1706173843362,-293.45978256,0.00023,2]
[312705187,1706173843375,-309.391019,0.00023,2]
[312705188,1706173843386,-269.89100001,0.00023,2]
[312705189,1706173843399,-9512.8586279,0.00023,2]
[312705190,1706173843410,-5021.5659122,0.00023,2]
[312705191,1706173843425,-709.17,0.00023,2]
[312705192,1706173843445,-55249.17040378,0.00023,2]
[312705193,1706173843456,-425.95693317,0.00023,2]
[312705194,1706173843467,-464.45105615,0.00023,2]
[312705195,1706173843478,-11808.45385105,0.00023,2]
[312705263,1706173861811,804.91,0.00019699,2]
[312705264,1706173862098,804.91,0.00021963,2]
[312705265,1706173894100,204.0,0.00021296,2]
[312705266,1706174003698,169.56,0.00021644,2]
[312705267,1706174011959,153.83,0.00021617,2]
[312706933,1706174274513,712.0,0.00021617,2]
[312707309,1706174302595,737.24,0.00019699,2]
[312708213,1706174766631,208.0,0.00021273,2]
[312708214,1706174788825,712.55,0.00020745,2]
[312708215,1706174803175,859.85446453,0.00019699,2]
[312708216,1706174901143,2449.15870761,0.00014774,2]
[312708217,1706174901168,1721.16468349,0.00014774,2]
[312708218,1706174919137,4170.3233911,0.00011081,2]
[312708219,1706174937130,4170.3233911,0.00011081,2]
[312708220,1706174957144,832.17506454,0.00011081,2]
[312708238,1706175031923,-323.65915337,0.00021889,2]
[312708246,1706175031979,-193.66732684,0.00021889,2]
[312708247,1706175031988,-690.49430514,0.0002189,2]
[312708248,1706175031997,-1051.75289646,0.00021891,2]
[312708249,1706175032215,-165.07307558,0.00021892,2]
[312708250,1706175032233,-121.25236398,0.000219,2]
[312708251,1706175032245,-28.74763602,0.000219,2]
[312708252,1706175032255,-437.88740171,0.00022142,2]
[312708255,1706175032289,-373.05308475,0.00022142,2]
[312708259,1706175032317,-440.8651,0.00022142,2]
[312708261,1706175032328,-500.65574013,0.00022142,2]
[312708264,1706175032356,-247.53867341,0.00022142,2]
[312708266,1706175032365,-152.46132659,0.00022346,2]
[312708278,1706175037923,-17.09867341,0.00022346,2]
[312708280,1706175037933,-268.60828937,0.00022448,2]
[312708283,1706175037944,-544.38170658,0.00022448,2]
[312708287,1706175037980,-289.27000405,0.00022448,2]
[312708289,1706175037989,-150.0,0.00022499,2]
[312708291,1706175037998,-6406.80373969,0.000225,3]
[312708297,1706175038106,-3593.19626031,0.000225,3]
[312708298,1706175038116,-213.86162101,0.00022571,2]
[312708299,1706175038128,-971.02837899,0.00022571,2]
[312708300,1706175038137,-150.99,0.00022571,2]
[312708301,1706175038147,-150.0,0.00022668,2]
[312708302,1706175038157,-4243.14162101,0.0002269,2]
[312708303,1706175038233,-2217.500001,0.0002269,2]
[312708304,1706175038305,-313.69229571,0.0002269,2]
[312708305,1706175038321,-6476.06608228,0.0002269,2]
[312708306,1706175038331,-474.9,0.00022691,2]
[312708307,1706175038341,-250.0,0.00022745,2]
[312708308,1706175038351,-454.86284956,0.00022745,2]
[312708309,1706175038364,-256.99999848,0.00022745,2]
[312708321,1706175040489,-894.13310659,0.00022745,2]
[312708328,1706175041182,-1330.32404537,0.00022745,2]
[312708329,1706175041193,-430.4,0.00022763,2]
[312708330,1706175041202,-169.04970809,0.00022815,2]
[312708335,1706175041448,-630.95029191,0.00022815,2]
[312708336,1706175041458,-800.0,0.00022816,2]
[312708337,1706175041467,-250.0,0.0002284,2]
[312708338,1706175041476,-287.76645809,0.000229,2]
[312708339,1706175041902,-520.18421044,0.000229,2]
[312708340,1706175041917,-1040.85203147,0.000229,2]
[312708341,1706175041926,-152.88280836,0.000229,2]
[312708342,1706175041936,-2580.22784917,0.000229,2]
[312708343,1706175041945,-651.73305253,0.000229,2]
[312708344,1706175041954,-250.67,0.00022948,2]
[312708345,1706175041963,-2201.61749514,0.00022998,2]
[312708346,1706175041973,-3068.39602931,0.00022998,2]
[312708347,1706175041982,-364.43289109,0.00022998,2]
[312708348,1706175041991,-2158.09620532,0.00022998,2]
[312708349,1706175042001,-523.81891799,0.00022998,2]
[312708350,1706175042014,-150.01,0.00022999,2]
[312708351,1706175042024,-3301.0962401,0.00022999,2]
[312708352,1706175042034,-761.0,0.00023,2]
[312708353,1706175042043,-5495.98731338,0.00023,2]
[312708354,1706175042055,-456.72714904,0.00023,2]
[312708355,1706175042075,-864.15823459,0.00023,2]
[312708373,1706175043019,-305.26065551,0.00023,2]
[312708379,1706175043068,-54528.169096,0.00023,2]
[312708385,1706175043111,-227880.0,0.00023,2]
[312708387,1706175043122,-502.2318799,0.00023,2]
[312708405,1706175043397,-3666.39348478,0.00023,2]
[312708407,1706175046106,-6892.22023309,0.00023,2]
[312708408,1706175046270,-283.86273623,0.00023,2]
[312708409,1706175046282,-347.85384499,0.00023,2]
[312708410,1706175046389,-300.02,0.00022999,2]
[312708411,1706175046399,-869.94639169,0.00023,2]
[312708412,1706175046412,-475.00000003,0.00023,2]
[312708413,1706175058612,587.96777916,0.00020699,5]
[312708414,1706175063669,205.0,0.00021273,2]
[312708415,1706175262737,689.1,0.00019892,2]
[312708416,1706175270946,184.1411964,0.00021687,2]
[312708417,1706175496501,167.92,0.00021693,2]
[312708418,1706175700119,654.64,0.00019793,2]
[312708419,1706175844583,208.0,0.00021501,2]
[312708420,1706176042706,250.0,0.00021692,2]
[312708421,1706176104272,500.0,0.00021692,2]
[312708438,1706176232192,-525.70539145,0.00021703,2]
[312708439,1706176232202,-257.07660855,0.00021704,2]
[312708440,1706176232249,-138.67339145,0.00021704,2]
[312708441,1706176232258,-733.44906282,0.00021704,2]
[312708442,1706176232267,-191.77,0.00021707,10]
[312708443,1706176232276,-109.54432253,0.00021712,2]
[312708444,1706176232288,-63.21039735,0.00021712,2]
[312708445,1706176232484,-344.32,0.00021713,2]
[312708446,1706176232497,-25.83456495,0.00021762,2]
[312708448,1706176232508,-135.08886553,0.00021762,2]
[312708450,1706176232517,-219.8,0.00021809,2]
[312708452,1706176232527,-1561.18251023,0.00021842,2]
[312708454,1706176232536,-655.68,0.00021862,2]
[312708456,1706176232545,-38.94061429,0.00021887,2]
[312708461,1706176232574,-129.03938571,0.00021887,2]
[312708464,1706176232583,-250.0,0.00021918,2]
[312708467,1706176232592,-157.62,0.00021927,2]
[312708470,1706176232601,-75.31500283,0.00021988,2]
[312708474,1706176232613,-82.30499717,0.00021988,2]
[312708477,1706176232622,-160.92343048,0.00022042,2]
[312708480,1706176232632,-157.62,0.00022048,2]
[312708483,1706176232641,-654.64,0.00022056,2]
[312708486,1706176232650,-157.62,0.00022108,2]
[312708489,1706176232659,-157.62,0.00022168,2]
[312708490,1706176232668,-157.62,0.00022228,2]
[312708493,1706176232677,-157.62,0.00022288,2]
[312708495,1706176232686,-160.92343048,0.00022321,2]
[312708497,1706176232695,-157.62,0.00022348,2]
[312708499,1706176232705,-157.62,0.00022408,2]
[312708502,1706176232714,-157.62,0.00022469,2]
[312708503,1706176232723,-157.62,0.00022529,2]
[312708505,1706176232732,-157.62,0.00022589,2]
[312708506,1706176232741,-160.92343048,0.00022601,2]
[312708507,1706176232750,-157.62,0.00022649,2]
[312708508,1706176232759,-157.62,0.00022709,2]
[312708509,1706176232768,-150.0,0.00022721,2]
[312708510,1706176232777,-150.0,0.00022722,2]
[312708511,1706176232786,-150.0,0.00022725,2]
[312708512,1706176232796,-150.0,0.00022727,2]
[312708513,1706176232805,-150.0,0.0002274,2]
[312708514,1706176232814,-150.0,0.00022741,2]
[312708515,1706176232823,-150.0,0.00022741,2]
[312708516,1706176232832,-150.0,0.00022744,2]
[312708517,1706176232841,-150.0,0.00022745,2]
[312708518,1706176232851,-150.0,0.00022747,2]
[312708519,1706176232860,-150.0,0.00022748,2]
[312708520,1706176232869,-150.0,0.00022749,2]
[312708521,1706176232878,-150.0,0.0002275,2]
[312708522,1706176232888,-150.0,0.00022752,2]
[312708523,1706176232897,-150.0,0.00022756,2]
[312708524,1706176232906,-150.0,0.00022758,2]
[312708525,1706176232914,-150.0,0.00022759,2]
[312708526,1706176232923,-150.0,0.00022759,2]
[312708527,1706176232932,-150.0,0.00022761,2]
[312708528,1706176232941,-234.63597224,0.00022768,2]
[312708529,1706176232950,-1500.0,0.00022769,2]
[312708530,1706176232959,-157.62,0.00022769,2]
[312708531,1706176232968,-150.0,0.0002277,2]
[312708532,1706176232978,-150.0,0.0002277,2]
[312708533,1706176232987,-150.0,0.00022771,2]
[312708534,1706176232996,-150.0,0.00022784,2]
[312708535,1706176233005,-150.0,0.00022786,2]
[312708536,1706176233015,-150.0,0.00022788,2]
[312708537,1706176233024,-150.0,0.00022788,2]
[312708538,1706176233033,-156.69776601,0.000228,2]
[312708539,1706176233042,-150.0,0.00022805,2]
[312708540,1706176233051,-150.0,0.00022807,2]
[312708541,1706176233060,-150.0,0.00022808,2]
[312708542,1706176233069,-150.0,0.00022812,2]
[312708543,1706176233078,-300.0,0.00022815,2]
[312708544,1706176233087,-200.0,0.00022816,2]
[312708545,1706176233096,-800.0,0.00022816,2]
[312708546,1706176233105,-200.0,0.00022816,2]
[312708547,1706176233114,-299.07562492,0.00022817,2]
[312708548,1706176233125,-150.0,0.00022821,2]
[312708549,1706176233135,-150.0,0.00022826,2]
[312708550,1706176233144,-150.0,0.00022828,2]
[312708551,1706176233153,-150.0,0.00022828,2]
[312708552,1706176233162,-157.62,0.00022829,2]
[312708553,1706176233172,-150.0,0.00022843,2]
[312708554,1706176233181,-150.0,0.00022844,2]
[312708555,1706176233190,-150.0,0.00022844,2]
[312708556,1706176233199,-53.69534822,0.00022848,2]
[312708557,1706176233227,-96.30465178,0.00022848,2]
[312708558,1706176233236,-150.0,0.00022849,2]
[312708559,1706176233245,-1500.0,0.00022851,2]
[312708560,1706176233254,-150.0,0.00022854,2]
[312708561,1706176233264,-150.0,0.00022855,2]
[312708562,1706176233273,-150.0,0.00022858,2]
[312708563,1706176233282,-76.49534822,0.00022862,2]
[312708564,1706176233310,-73.50465178,0.00022862,2]
[312708565,1706176233319,-150.0,0.00022862,2]
[312708566,1706176233328,-150.0,0.00022862,2]
[312708567,1706176233337,-150.0,0.00022864,2]
[312708568,1706176233347,-194.82822187,0.00022866,2]
[312708569,1706176233355,-150.0,0.00022869,2]
[312708570,1706176233365,-150.0,0.00022873,2]
[312708571,1706176233374,-150.0,0.00022875,2]
[312708572,1706176233384,-118.9255335,0.00022878,2]
[312708573,1706176233397,-31.0744665,0.00022878,2]
[312708574,1706176233410,-150.0,0.00022879,2]
[312708575,1706176233419,-150.0,0.0002288,2]
[312708576,1706176233428,-160.92343048,0.0002288,2]
[312708577,1706176233438,-57.41826702,0.00022881,2]
[312708578,1706176233450,-92.58173298,0.00022881,2]
[312708579,1706176233459,-150.0,0.00022889,2]
[312708580,1706176233468,-157.62,0.0002289,2]
[312708581,1706176233477,-150.0,0.00022899,2]
[312708582,1706176233489,-1530.12869453,0.000229,2]
[312708591,1706176238143,-251.68160071,0.000229,2]
[312708598,1706176238202,-1007.99999868,0.000229,2]
[312708599,1706176238214,-294.30049551,0.000229,2]
[312708600,1706176238263,-1915.88921057,0.000229,2]